bitfinex-derivatives/quotes_BTCF0:USTF0_20251217
["timestamp","ask_amount","ask_price","bid_price","bid_amount"]
[1765994766015,0.0242585,86798.0,86781.0,0.3723268]
[1765994766213,0.21416,86805.0,86787.0,0.3608]
[1765994766214,0.3608,86804.0,86787.0,0.3608]
[1765994766429,0.0115245,86800.0,86787.0,0.3608]
[1765994766624,0.0115249,86797.0,86787.0,0.3608]
[1765994767220,0.23855846,86800.0,86787.0,0.3608]
[1765994767525,0.22703406,86800.0,86787.0,0.3608]
[1765994767729,0.01169706,86801.0,86787.0,0.3608]
[1765994767926,0.0115254,86793.0,86787.0,0.3608]
[1765994768122,0.02423035,86800.0,86787.0,0.3608]
[1765994768123,0.0115246,86799.0,86787.0,0.3608]
[1765994768322,0.22650274,86800.0,86787.0,0.3608]
[1765994768323,0.0115244,86800.0,86787.0,0.3608]
[1765994768726,0.00017286,86801.0,86787.0,0.3608]
[1765994769228,0.7023389,86804.0,86787.0,0.372326]
[1765994769428,0.34188,86804.0,86795.0,0.3608]
[1765994770423,0.353404,86804.0,86795.0,0.3608]
[1765994771623,0.3608,86796.0,86791.0,0.00017286]
[1765994771824,0.0115254,86793.0,86787.0,0.001]
[1765994772029,0.3608,86788.0,86787.0,0.001]
[1765994772532,0.3608,86788.0,86775.0,0.0115276]
[1765994773031,0.3608,86796.0,86779.0,0.3608]
[1765994773628,0.3608,86796.0,86785.0,0.0115263]
[1765994774236,0.3608,86796.0,86784.0,0.0115264]
[1765994774534,0.3608,86796.0,86787.0,0.0115261]
[1765994774935,0.3608,86796.0,86789.0,0.0115258]
[1765994775237,0.3608,86796.0,86780.0,0.22650274]
[1765994775238,0.3608,86796.0,86788.0,0.0115259]
[1765994775837,4.93e-06,86799.0,86797.0,0.0115247]
[1765994776334,4.93e-06,86799.0,86795.0,0.3608]
[1765994777526,4.93e-06,86799.0,86795.0,0.372325]
[1765994777724,4.93e-06,86799.0,86797.0,0.0115246]
[1765994778124,4.93e-06,86799.0,86796.0,0.0115249]
[1765994779442,0.36044493,86815.0,86801.0,0.0115242]
[1765994779628,0.36044493,86815.0,86803.0,0.3608]
[1765994779829,0.0115226,86814.0,86803.0,0.3608]
[1765994780139,0.0115227,86813.0,86803.0,0.3608]
[1765994780629,0.36044493,86815.0,86803.0,0.3608]
[1765994781235,0.0115225,86814.0,86803.0,0.3608]
[1765994781436,0.36044493,86815.0,86803.0,0.3608]
[1765994781738,0.3608,86816.0,86803.0,0.3608]
[1765994781940,0.3723223,86816.0,86803.0,0.3608]
[1765994782735,0.0115225,86814.0,86803.0,0.3608]
[1765994782938,0.3608,86816.0,86803.0,0.3608]
[1765994783140,0.0115232,86809.0,86803.0,0.3608]
[1765994783334,0.0115229,86812.0,86803.0,0.3608]
[1765994783843,0.0115227,86813.0,86803.0,0.3608]
[1765994784038,0.3608,86809.0,86784.0,0.03610951]
[1765994784239,0.3608,86793.0,86782.0,0.02817685]
[1765994784540,0.3608,86793.0,86774.0,0.36098425]
[1765994784743,0.3608,86793.0,86782.0,0.0115268]
[1765994784948,0.3608,86800.0,86774.0,0.36098425]
[1765994785147,0.3608,86809.0,86797.0,0.0115247]
[1765994785438,0.77704,86819.0,86802.0,0.3608]
[1765994785628,0.77704,86819.0,86810.0,0.3608]
[1765994787145,0.3608,86819.0,86810.0,0.3608]
[1765994787333,8e-08,86818.0,86814.0,0.0115225]
[1765994787538,8e-08,86818.0,86803.0,0.00017286]
[1765994787539,8e-08,86818.0,86815.0,0.3608]
[1765994788342,0.36080008,86818.0,86803.0,0.00017286]
[1765994789242,0.3608,86810.0,86803.0,0.00017286]
[1765994791248,0.3608,86810.0,86803.0,0.00117286]
[1765994791547,0.3608,86810.0,86804.0,0.0115238]
[1765994791750,0.3608,86810.0,86803.0,0.00117286]
[1765994792134,0.3608,86810.0,86803.0,0.00017286]
[1765994792338,0.3608,86810.0,86803.0,0.00117286]
[1765994792542,0.3608,86810.0,86803.0,0.01269676]
[1765994792742,0.3608,86810.0,86803.0,0.00117286]
[1765994793240,0.3608,86810.0,86805.0,0.0115237]
[1765994793644,8e-08,86818.0,86809.0,0.3608]
[1765994793935,8e-08,86818.0,86810.0,0.011523]
[1765994794151,8e-08,86818.0,86809.0,0.3608]
[1765994794348,8e-08,86818.0,86815.0,0.0115224]
[1765994794735,8e-08,86818.0,86809.0,0.3608]
[1765994795049,8e-08,86818.0,86811.0,0.0115228]
[1765994795436,8e-08,86818.0,86809.0,0.3608]
[1765994795643,8e-08,86818.0,86810.0,0.011523]
[1765994795945,8e-08,86818.0,86812.0,0.0115227]
[1765994796650,8e-08,86818.0,86811.0,0.0115229]
[1765994797340,8e-08,86818.0,86811.0,0.001]
[1765994798345,8e-08,86818.0,86817.0,0.3608]
[1765994800038,0.0115192,86839.0,86820.0,0.0115216]
[1765994800237,0.02430256,86838.0,86825.0,0.3608]
[1765994800546,0.02430256,86837.0,86825.0,0.3608]
[1765994800852,0.3608,86831.0,86808.0,0.02908301]
[1765994801151,0.3608,86820.0,86807.0,0.3608]
[1765994801353,0.3608,86831.0,86819.0,0.3723218]
[1765994801745,0.3608,86831.0,86825.0,0.001]
[1765994802548,0.3608,86836.0,86825.0,0.001]
[1765994802853,0.0242321,86835.0,86825.0,0.001]
[1765994803055,0.0242321,86834.0,86825.0,0.001]
[1765994803349,0.0115203,86831.0,86819.0,0.36097276]
[1765994803538,0.3608,86836.0,86819.0,0.36097276]
[1765994803539,0.3608,86825.0,86819.0,0.00017276]
[1765994804945,0.3608,86825.0,86819.0,2.76e-06]
[1765994805343,0.3723211,86825.0,86819.0,2.76e-06]
[1765994805755,0.0115216,86821.0,86819.0,2.76e-06]
[1765994805952,0.0242324,86820.0,86819.0,2.76e-06]
[1765994806362,0.0115277,86776.0,86755.0,0.0115302]
[1765994806653,0.0115282,86772.0,86750.0,0.011531]
[1765994806857,0.0115278,86775.0,86742.0,0.02890757]
[1765994807041,0.0115281,86772.0,86748.0,0.0115312]
[1765994807242,0.19413,86756.0,86752.0,0.00017288]
[1765994808269,8.152e-05,86755.0,86749.0,0.00138754]
[1765994808448,0.00017288,86769.0,86754.0,0.3608]
[1765994808850,0.00017288,86769.0,86762.0,0.3608]
[1765994809658,0.01170138,86769.0,86754.0,0.3608]
[1765994810162,0.00017288,86769.0,86754.0,0.3608]
[1765994812058,0.00017288,86769.0,86754.0,0.3723305]
[1765994813963,0.00017288,86769.0,86754.0,0.3733305]
[1765994814160,0.00017288,86769.0,86754.0,0.3618]
[1765994815565,0.00017288,86769.0,86755.0,0.0115303]
[1765994815962,0.00017288,86769.0,86754.0,0.3618]
[1765994816266,0.19913008,86771.0,86762.0,0.3608]
[1765994817764,0.19913008,86771.0,86754.0,0.3618]
[1765994817962,0.19913008,86771.0,86755.0,0.0115303]
[1765994818158,0.19913008,86771.0,86757.0,0.01153]
[1765994818373,0.19913008,86771.0,86754.0,0.3618]
[1765994818867,0.19913008,86771.0,86757.0,0.01153]
[1765994819272,0.19913008,86771.0,86760.0,0.0115297]
[1765994819467,0.19913008,86771.0,86754.0,0.3608]
[1765994819862,0.19913008,86771.0,86755.0,0.0115303]
[1765994820070,0.19913008,86771.0,86757.0,0.01253]
[1765994820375,0.00017288,86775.0,86757.0,0.01253]
[1765994820376,0.3608,86772.0,86757.0,0.001]
[1765994820566,0.3608,86772.0,86763.0,0.0115292]
[1765994820769,0.3608,86772.0,86762.0,0.3723293]
[1765994821073,0.3608,86772.0,86762.0,0.3608]
[1765994821274,2.88e-06,86775.0,86765.0,0.0115289]
[1765994821767,2.88e-06,86775.0,86762.0,0.3608]
[1765994821959,0.3608,86771.0,86762.0,0.3608]
[1765994822165,0.3608,86771.0,86757.0,0.001]
[1765994822564,0.3608,86771.0,86754.0,0.3608]
[1765994822770,0.3608,86771.0,86755.0,0.0115303]
[1765994823069,0.3608,86771.0,86757.0,0.0115301]
[1765994823284,0.3608,86771.0,86759.0,0.0115298]
[1765994823769,0.3608,86772.0,86764.0,0.0115291]
[1765994823975,2.88e-06,86775.0,86772.0,0.0115281]
[1765994824164,0.25292,86794.0,86769.0,0.7216]
[1765994824359,0.25292,86794.0,86791.0,0.3608]
[1765994824563,0.33208573,86810.0,86791.0,0.3608]
[1765994824765,0.0115233,86808.0,86801.0,0.3608]
[1765994825072,0.00517288,86813.0,86805.0,0.3608]
[1765994825773,0.00517288,86813.0,86805.0,0.3723236]
[1765994825966,0.33208573,86830.0,86812.0,0.3608]
[1765994826160,0.0115207,86828.0,86812.0,0.3608]
[1765994826367,0.011521,86826.0,86812.0,0.3608]
[1765994826565,0.69288573,86830.0,86812.0,0.3608]
[1765994826766,0.3608,86822.0,86809.0,0.3608]
[1765994826959,0.00017234,86824.0,86809.0,0.3608]
[1765994827165,0.3608,86830.0,86814.0,0.0115224]
[1765994827564,0.3608,86830.0,86811.0,0.0115229]
[1765994827874,0.3608,86830.0,86814.0,0.0115225]
[1765994828072,0.3608,86830.0,86810.0,0.011523]
[1765994828275,0.3608,86830.0,86809.0,0.3608]
[1765994828577,0.3608,86822.0,86809.0,0.3723231]
[1765994828779,0.3723205,86830.0,86819.0,0.3608]
[1765994829071,0.01152,86833.0,86819.0,0.3608]
[1765994829272,0.3608,86842.0,86827.0,0.3608]
[1765994829580,0.0115193,86839.0,86827.0,0.3608]
[1765994829770,0.0115196,86837.0,86827.0,0.3608]
[1765994830675,0.3608,86842.0,86827.0,0.3608]
[1765994830864,0.3608,86842.0,86826.0,0.00017278]
[1765994831175,0.3608,86834.0,86826.0,0.00017278]
[1765994831378,0.3608,86842.0,86826.0,0.36097278]
[1765994831583,0.3608,86842.0,86833.0,0.3608]
[1765994833177,0.3608,86842.0,86826.0,0.00017278]
[1765994833379,0.3608,86842.0,86832.0,0.3608]
[1765994834773,0.3723189,86842.0,86832.0,0.3608]
[1765994835467,0.3608,86842.0,86832.0,0.3608]
[1765994836076,0.3723188,86842.0,86832.0,0.3608]
[1765994836969,0.3608,86842.0,86832.0,0.3608]
[1765994837172,0.3723188,86842.0,86832.0,0.3608]
[1765994838371,0.3608,86842.0,86832.0,0.3608]
[1765994838576,2.0,86850.0,86839.0,0.3608]
[1765994838785,0.0115164,86861.0,86839.0,0.3608]
[1765994839078,0.0115173,86853.0,86839.0,0.3608]
[1765994839284,0.0115172,86855.0,86839.0,0.3608]
[1765994839684,0.0115174,86853.0,86839.0,0.3608]
[1765994839984,0.0115177,86851.0,86839.0,0.3608]
[1765994840494,0.3608,86856.0,86839.0,0.3608]
[1765994841977,0.0115174,86853.0,86839.0,0.3608]
[1765994842175,0.0115176,86851.0,86839.0,0.3608]
[1765994842380,0.372318,86849.0,86832.0,0.01152]
[1765994842684,0.0115181,86848.0,86831.0,0.3723202]
[1765994842885,0.3608,86842.0,86831.0,0.3608]
[1765994843185,0.3608,86842.0,86826.0,0.00017278]
[1765994843375,0.22620755,86840.0,86826.0,0.00017278]
[1765994843578,0.3608,86840.0,86827.0,0.0115207]
[1765994843890,0.3608,86849.0,86833.0,0.0115199]
[1765994844072,0.3608,86842.0,86831.0,0.3608]
[1765994844278,0.3723189,86841.0,86831.0,0.3608]
[1765994844481,0.0115192,86839.0,86831.0,0.3608]
[1765994844974,0.3608,86832.0,86826.0,0.00017278]
[1765994845374,0.0115206,86829.0,86826.0,8e-08]
[1765994845593,0.3608,86831.0,86826.0,8e-08]
[1765994845778,0.3723203,86831.0,86826.0,8e-08]
[1765994845974,0.0115204,86830.0,86826.0,8e-08]
[1765994846377,0.3608,86831.0,86826.0,8e-08]
[1765994846782,0.0115206,86829.0,86826.0,8e-08]
[1765994847491,0.3608,86831.0,86826.0,8e-08]
[1765994847692,0.3608,86831.0,86826.0,0.01152088]
[1765994847885,0.0001727,86837.0,86826.0,8e-08]
[1765994848080,0.3608,86846.0,86835.0,0.0115197]
[1765994848392,0.3608,86846.0,86837.0,0.3723194]
[1765994848890,0.3608,86846.0,86837.0,0.3608]
[1765994849695,0.3608,86846.0,86838.0,0.0115193]
[1765994852298,0.22620755,86860.0,86837.0,0.3618]
[1765994852495,0.0115166,86859.0,86840.0,0.011519]
[1765994852994,0.0115169,86857.0,86837.0,0.3723194]
[1765994853493,0.22620755,86860.0,86837.0,0.3723194]
[1765994853494,0.3658,86854.0,86837.0,0.3608]
[1765994853696,0.3658,86854.0,86840.0,0.011519]
[1765994854290,0.02522221,86853.0,86840.0,0.011519]
[1765994854600,0.3658,86854.0,86840.0,0.011519]
[1765994854804,0.02522423,86853.0,86840.0,0.011519]
[1765994854998,0.3658,86854.0,86840.0,0.011519]
[1765994855198,0.02522431,86853.0,86840.0,0.011519]
[1765994855495,0.3658,86854.0,86837.0,0.3608]
[1765994856097,0.02523832,86853.0,86837.0,0.3608]
[1765994856297,0.3658,86854.0,86838.0,0.0115192]
[1765994856598,0.02524746,86853.0,86838.0,0.0115192]
[1765994857403,0.02524746,86853.0,86840.0,0.0115191]
[1765994858205,0.02524746,86853.0,86837.0,0.3608]
[1765994858398,0.02524746,86853.0,86837.0,0.3723194]
[1765994858599,0.0115184,86845.0,86837.0,0.3608]
[1765994858789,0.0115181,86848.0,86837.0,0.3608]
[1765994858995,0.02526339,86847.0,86837.0,0.3608]
[1765994859194,0.0115181,86848.0,86837.0,0.3608]
[1765994859391,0.02526568,86847.0,86837.0,0.3608]
[1765994859598,0.3658,86854.0,86837.0,0.3608]
[1765994859801,0.02526493,86853.0,86840.0,0.011519]
[1765994859999,0.3658,86854.0,86837.0,0.3723194]
[1765994860000,0.02526493,86852.0,86837.0,0.3723194]
[1765994860207,0.02526493,86851.0,86837.0,0.3723194]
[1765994860404,0.02526493,86850.0,86839.0,0.0115192]
[1765994860606,0.02526493,86849.0,86839.0,0.0115192]
[1765994860828,0.02526493,86848.0,86839.0,0.0115192]
[1765994860990,0.3658,86854.0,86837.0,0.3608]
[1765994861189,0.0115184,86846.0,86830.0,0.58700755]
[1765994861394,0.0252661,86845.0,86829.0,0.3723205]
[1765994861600,0.0115185,86844.0,86829.0,0.3723205]
[1765994861902,0.0115185,86844.0,86829.0,0.3608]
[1765994862109,0.0115185,86845.0,86829.0,0.3608]
[1765994862300,0.0115185,86845.0,86830.0,0.0115204]
[1765994862494,0.3723181,86847.0,86830.0,0.0115204]
[1765994862693,0.02527204,86846.0,86829.0,0.3608]
[1765994862900,0.02527204,86845.0,86833.0,0.0115199]
[1765994863107,0.005,86854.0,86840.0,0.3608]
[1765994863298,0.011518,86848.0,86832.0,0.0115201]
[1765994863491,0.02544817,86847.0,86832.0,0.0115201]
[1765994863693,0.02544817,86847.0,86829.0,0.3608]
[1765994863694,0.005,86854.0,86838.0,0.0115192]
[1765994863912,1e-07,86854.0,86848.0,0.3608]
[1765994864199,1e-07,86854.0,86851.0,0.0115175]
[1765994864405,0.3608,86876.0,86868.0,0.0115153]
[1765994864602,0.0115127,86889.0,86871.0,0.3608]
[1765994864798,0.3218329,86887.0,86871.0,0.3608]
[1765994865198,0.22620755,86881.0,86871.0,0.3608]
[1765994865605,0.0115133,86884.0,86871.0,0.3608]
[1765994865902,0.0115131,86885.0,86871.0,0.3608]
[1765994866297,0.0115135,86883.0,86871.0,0.3608]
[1765994866497,0.011513,86886.0,86871.0,0.3608]
[1765994866710,0.22620755,86890.0,86866.0,0.3608]
[1765994866711,0.3608,86883.0,86866.0,0.3608]
[1765994866906,0.22620755,86880.0,86866.0,0.3608]
[1765994867298,0.0115139,86879.0,86866.0,0.3608]
[1765994867492,0.3608,86875.0,86866.0,0.3608]
[1765994868803,0.3608,86883.0,86866.0,0.3608]
[1765994868998,0.22620755,86880.0,86866.0,0.3608]
[1765994869198,0.0115142,86877.0,86866.0,0.3608]
[1765994869506,0.22620755,86880.0,86866.0,0.3608]
[1765994869707,0.0115142,86877.0,86866.0,0.3608]
[1765994870008,0.23772135,86880.0,86866.0,0.3608]
[1765994870199,0.22620755,86880.0,86866.0,0.3608]
[1765994870703,0.3608,86883.0,86866.0,0.3608]
[1765994870899,0.23772145,86880.0,86866.0,0.3608]
[1765994871100,0.22620755,86880.0,86866.0,0.3608]
[1765994871504,0.3608,86883.0,86866.0,0.3723155]
[1765994871907,0.3608,86883.0,86866.0,0.3608]
[1765994872108,0.3608,86883.0,86867.0,0.0115154]
[1765994872302,0.3608,86883.0,86870.0,0.22620755]
[1765994872504,0.3608,86883.0,86866.0,0.3608]
[1765994872698,0.3608,86883.0,86869.0,0.0115152]
[1765994873014,0.3608,86883.0,86866.0,0.3723156]
[1765994873715,0.3608,86883.0,86868.0,0.0115153]
[1765994873908,0.3608,86883.0,86866.0,0.3608]
[1765994874112,0.3608,86883.0,86855.0,0.3608]
[1765994874113,0.3608,86869.0,86855.0,0.3608]
[1765994874302,0.3608,86863.0,86846.0,0.3608]
[1765994874500,0.0115165,86860.0,86846.0,0.3608]
[1765994874709,0.3608,86850.0,86836.0,0.3608]
[1765994874911,0.3608,86842.0,86836.0,0.02950108]
[1765994875112,0.00017231,86848.0,86832.0,0.005]
[1765994875305,0.3608,86841.0,86832.0,0.005]
[1765994876613,0.372319,86841.0,86832.0,0.005]
[1765994876914,0.3608,86834.0,86818.0,0.725]
[1765994877115,0.3608,86834.0,86818.0,0.02831205]
[1765994877424,0.3608,86834.0,86817.0,0.3608]
[1765994877425,0.3608,86834.0,86825.0,0.0115209]
[1765994877719,0.35588,86834.0,86825.0,0.0115209]
[1765994878120,0.35588,86834.0,86821.0,0.00017267]
[1765994878314,0.35588,86834.0,86828.0,0.0115206]
[1765994878514,0.01169031,86848.0,86821.0,0.00017267]
[1765994878515,0.00017231,86848.0,86830.0,0.3723203]
[1765994878708,0.00017231,86848.0,86832.0,0.01152]
[1765994878709,0.3608,86847.0,86832.0,0.01152]
[1765994878908,0.3608,86847.0,86830.0,0.58700755]
[1765994879112,0.3608,86847.0,86830.0,0.3608]
[1765994880317,0.3608,86832.0,86821.0,0.00017267]
[1765994880525,0.22620755,86831.0,86821.0,0.00017267]
[1765994880721,0.3608,86822.0,86800.0,0.3608]
[1765994880911,0.3608,86803.0,86793.0,0.3608]
[1765994881312,0.3608,86803.0,86783.0,0.3608]
[1765994881313,0.3608,86803.0,86790.0,0.22620755]
[1765994881518,0.5,86818.0,86802.0,0.3608]
[1765994881715,0.3608,86817.0,86802.0,0.3608]
[1765994881919,0.3608,86808.0,86795.0,0.3608]
[1765994882225,0.3608,86798.0,86783.0,0.0115265]
[1765994882521,0.7216,86798.0,86786.0,0.0115262]
[1765994882720,0.55493,86798.0,86788.0,0.22620755]
[1765994882916,0.31895,86798.0,86788.0,0.22620755]
[1765994883112,0.31895,86798.0,86789.0,0.0115257]
[1765994883325,0.3608,86810.0,86791.0,0.3668]
[1765994884114,0.0115235,86807.0,86791.0,0.3668]
[1765994884314,0.3608,86792.0,86786.0,0.00017277]
[1765994884515,0.3608,86792.0,86791.0,0.001]
[1765994884915,0.3608,86792.0,86786.0,0.00017277]
[1765994884916,0.3608,86792.0,86786.0,2.77e-06]
[1765994885112,0.3608,86787.0,86775.0,9.642e-05]
[1765994885520,0.3608,86780.0,86763.0,0.3608]
[1765994885723,0.3608,86771.0,86763.0,0.3608]
[1765994886025,0.3608,86771.0,86760.0,0.23773715]
[1765994886411,0.3608,86771.0,86760.0,0.0115296]
[1765994887730,0.3608,86764.0,86760.0,0.0115296]
[1765994887930,0.3608,86764.0,86758.0,0.00017288]
[1765994888323,0.00013218,86763.0,86758.0,0.00017288]
[1765994889927,0.00017288,86776.0,86759.0,0.0115298]
[1765994890426,0.00017288,86776.0,86763.0,0.0115293]
[1765994890639,0.00017288,86776.0,86760.0,0.22620755]
[1765994890928,0.00017288,86776.0,86765.0,0.3608]
[1765994891522,0.00017288,86776.0,86766.0,0.0115289]
[1765994892527,0.00017288,86776.0,86765.0,0.3608]
[1765994892736,0.3608,86770.0,86758.0,0.00017288]
[1765994892922,0.3608,86770.0,86758.0,0.01170278]
[1765994893324,0.3608,86770.0,86758.0,0.00017288]
[1765994893732,8e-08,86776.0,86775.0,0.0115277]
[1765994893928,0.3608,86796.0,86781.0,0.0115268]
[1765994894236,0.3608,86796.0,86785.0,0.3723263]
[1765994894425,0.3608,86796.0,86785.0,0.3608]
[1765994895629,0.3608,86796.0,86786.0,0.0115262]
[1765994895834,0.3608,86796.0,86785.0,0.3608]
[1765994896131,0.3608,86796.0,86785.0,0.02746]
[1765994896332,0.3608,86789.0,86782.0,2.88e-06]
[1765994897230,0.3608,86796.0,86785.0,0.3608]
[1765994897432,0.00017288,86799.0,86785.0,0.3608]
[1765994897628,0.00017288,86799.0,86793.0,0.3608]
[1765994898535,0.00017288,86799.0,86785.0,0.3608]
[1765994899326,0.00017288,86799.0,86790.0,0.0115256]
[1765994899841,0.00017288,86799.0,86792.0,0.0115254]
[1765994900037,0.00017288,86799.0,86785.0,0.3618]
[1765994900038,0.00017288,86799.0,86785.0,0.3608]
[1765994900541,0.08688,86798.0,86788.0,0.0115259]
[1765994901436,0.08688,86798.0,86785.0,0.3608]
[1765994901632,0.08688,86798.0,86788.0,0.0115259]
[1765994901824,0.08688,86798.0,86785.0,0.3608]
[1765994902039,0.3732,86813.0,86788.0,0.33220373]
[1765994902234,0.005,86813.0,86806.0,0.3608]
[1765994902831,0.3608,86821.0,86806.0,0.3608]
[1765994903031,0.00017288,86821.0,86815.0,0.3608]
[1765994903333,6.56e-06,86821.0,86815.0,0.3608]
[1765994903639,0.3723193,86839.0,86818.0,0.0115219]
[1765994903839,0.3608,86839.0,86826.0,0.0115209]
[1765994904037,0.3608,86839.0,86825.0,0.3608]
[1765994904236,0.3608,86843.0,86819.0,0.3608]
[1765994904537,0.3608,86823.0,86822.0,8e-08]
[1765994904938,0.3608,86823.0,86794.0,0.0115251]
[1765994905145,0.3608,86801.0,86793.0,0.3723252]
[1765994905442,0.3608,86794.0,86791.0,0.005]
[1765994906032,0.36097278,86801.0,86792.0,0.0115254]
[1765994906033,0.00017278,86801.0,86792.0,0.0115254]
[1765994906233,2.78e-06,86802.0,86794.0,0.001]
[1765994906739,0.3608,86818.0,86800.0,0.3608]
[1765994906942,0.02485734,86817.0,86800.0,0.3608]
[1765994907143,0.00017278,86817.0,86800.0,0.3608]
[1765994907329,0.00017278,86817.0,86801.0,0.0115242]
[1765994907529,0.02487092,86816.0,86800.0,0.3608]
[1765994907735,0.02487082,86815.0,86800.0,0.3608]
[1765994908033,0.0115223,86816.0,86800.0,0.3608]
[1765994908233,0.02487106,86815.0,86800.0,0.3608]
[1765994908439,0.02488486,86814.0,86800.0,0.3608]
[1765994908635,0.00017278,86817.0,86800.0,0.3608]
[1765994908834,0.3608,86801.0,86792.0,0.0115254]
[1765994909431,0.3608,86801.0,86791.0,0.005]
[1765994910543,0.3608,86811.0,86791.0,0.005]
[1765994910743,0.02489348,86810.0,86796.0,0.3608]
[1765994910938,0.45005498,86817.0,86796.0,0.3723248]
[1765994911143,0.45005498,86817.0,86803.0,0.3608]
[1765994911540,0.0115225,86815.0,86803.0,0.3608]
[1765994912545,0.00017278,86817.0,86803.0,0.3723239]
[1765994912746,0.00017278,86817.0,86808.0,0.0115233]
[1765994912938,0.3608,86827.0,86814.0,0.3608]
[1765994913133,0.011521,86826.0,86814.0,0.3608]
[1765994913356,0.0115215,86822.0,86814.0,0.19413]
[1765994913540,0.3608,86817.0,86803.0,0.3608]
[1765994914145,2.78e-06,86819.0,86811.0,0.3608]
[1765994914652,0.3608,86834.0,86818.0,0.3608]
[1765994914942,0.0115202,86832.0,86818.0,0.3608]
[1765994915143,0.72564,86838.0,86818.0,0.3608]
[1765994915345,0.0115195,86837.0,86825.0,0.3608]
[1765994915547,0.3723193,86839.0,86825.0,0.3608]
[1765994915744,0.3608,86839.0,86825.0,0.3608]
[1765994915958,0.3608,86839.0,86828.0,0.0115206]
[1765994916243,0.3608,86847.0,86833.0,0.37232]
[1765994916444,0.3608,86847.0,86833.0,0.3608]
[1765994916844,0.3608,86847.0,86834.0,0.0115198]
[1765994917034,0.3608,86847.0,86833.0,0.3608]
[1765994917241,0.3608,86847.0,86833.0,0.3723199]
[1765994917547,0.3608,86847.0,86833.0,0.3733199]
[1765994917745,0.3608,86847.0,86833.0,0.3618]
[1765994918141,0.005,86854.0,86841.0,0.3608]
[1765994918339,0.005,86854.0,86839.0,0.3608]
[1765994918738,0.005,86854.0,86842.0,0.0115187]
[1765994918948,0.005,86854.0,86844.0,0.0115184]
[1765994919246,0.005,86854.0,86847.0,0.3608]
[1765994919845,0.3608,86866.0,86847.0,0.3723181]
[1765994920046,0.3608,86866.0,86847.0,0.3608]
[1765994920854,0.3608,86866.0,86849.0,0.0115178]
[1765994921146,0.0115168,86858.0,86847.0,0.3618]
[1765994921544,0.3608,86848.0,86840.0,0.00017278]
[1765994924246,0.3608,86857.0,86840.0,0.00017278]
[1765994924447,0.0115171,86855.0,86840.0,0.00017278]
[1765994925457,0.0115172,86854.0,86840.0,0.00017278]
[1765994925751,0.3608,86857.0,86840.0,0.00017278]
[1765994925752,0.0115176,86852.0,86840.0,0.00017278]
[1765994926161,0.3608,86857.0,86840.0,0.00017278]
[1765994926558,0.3608,86857.0,86843.0,0.0115186]
[1765994926760,0.3608,86857.0,86840.0,0.01169178]
[1765994927159,0.3608,86857.0,86846.0,0.3608]
[1765994927850,0.3723168,86857.0,86846.0,0.3608]
[1765994928249,0.3608,86857.0,86846.0,0.3608]
[1765994928857,0.3723169,86857.0,86846.0,0.3608]
[1765994929255,0.3608,86857.0,86846.0,0.3608]
[1765994930051,0.011517,86856.0,86846.0,0.3608]
[1765994930766,0.3608,86857.0,86846.0,0.3608]
[1765994930956,0.3723169,86857.0,86846.0,0.3608]
[1765994931456,0.3608,86857.0,86846.0,0.3608]
[1765994931663,0.3608,86857.0,86849.0,0.0115179]
[1765994931960,0.3618,86857.0,86846.0,0.3608]
[1765994932562,0.3608,86857.0,86846.0,0.3608]
[1765994933167,0.3608,86865.0,86848.0,0.011518]
[1765994933461,0.3608,86865.0,86850.0,0.0115177]
[1765994933672,0.3608,86865.0,86846.0,0.3608]
[1765994933673,0.3608,86865.0,86853.0,0.3608]
[1765994933969,0.3608,86875.0,86853.0,0.3608]
[1765994934158,0.33203549,86880.0,86862.0,0.3608]
[1765994934365,0.3608,86883.0,86870.0,0.3608]
[1765994935452,0.3608,86883.0,86873.0,0.0115146]
[1765994936060,0.3608,86893.0,86877.0,0.3608]
[1765994936772,0.3608,86893.0,86877.0,0.3723141]
[1765994936959,0.3608,86893.0,86879.0,0.0115138]
[1765994937158,0.3608,86893.0,86877.0,0.3608]
[1765994938062,0.001,86883.0,86877.0,0.3608]
[1765994938567,0.0115122,86892.0,86877.0,0.3608]
[1765994938958,0.3608,86893.0,86877.0,0.3608]
[1765994939766,0.3608,86893.0,86878.0,0.011514]
[1765994940068,0.3608,86897.0,86877.0,0.3608]
[1765994940457,0.3608,86897.0,86883.0,0.0115133]
[1765994940657,1e-07,86896.0,86884.0,0.3608]
[1765994941057,1e-07,86896.0,86881.0,2.67e-06]
[1765994941058,0.3608,86885.0,86881.0,2.67e-06]
[1765994941258,0.3608,86885.0,86874.0,0.005]
[1765994941765,0.3608,86877.0,86874.0,0.005]
[1765994941968,0.0115145,86875.0,86856.0,0.3608]
[1765994942159,0.3608,86859.0,86857.0,0.00017267]
[1765994942361,0.3608,86859.0,86857.0,2.67e-06]
[1765994942571,0.3608,86859.0,86840.0,0.3608]
[1765994942961,0.3608,86859.0,86841.0,0.0115189]
[1765994943161,0.3608,86859.0,86844.0,0.0115185]
[1765994943460,0.3608,86859.0,86843.0,0.00017267]
[1765994943661,0.3608,86859.0,86844.0,0.0115185]
[1765994944172,0.3608,86859.0,86843.0,0.00017267]
[1765994944466,0.3608,86845.0,86843.0,0.00017267]
[1765994944667,0.3608,86845.0,86843.0,2.67e-06]
[1765994945174,0.3608,86845.0,86844.0,0.001]
[1765994945669,0.3618,86845.0,86843.0,2.67e-06]
[1765994946172,0.3608,86845.0,86843.0,2.67e-06]
[1765994946372,0.3618,86845.0,86843.0,2.67e-06]
[1765994947073,0.00017267,86853.0,86843.0,2.67e-06]
[1765994947773,2.67e-06,86853.0,86850.0,0.3608]
[1765994948079,2.67e-06,86853.0,86851.0,0.0115176]
[1765994948264,0.3608,86869.0,86857.0,0.0115167]
[1765994948465,0.3608,86869.0,86860.0,0.3608]
[1765994948867,0.60408,86879.0,86860.0,0.3608]
[1765994949071,0.02462083,86878.0,86860.0,0.3608]
[1765994949279,0.02462083,86877.0,86860.0,0.36097267]
[1765994949666,0.03613513,86877.0,86860.0,0.36097267]
[1765994949866,0.02462083,86876.0,86860.0,0.36097267]
[1765994950277,0.33203549,86870.0,86850.0,0.22839]
[1765994950467,0.3608,86851.0,86843.0,0.3608]